bitfinex/quotes_SOLUSD_20250903
["timestamp","ask_amount","ask_price","bid_price","bid_amount"]
[1756913616366,0.68,212.18,212.14,7.97180148]
[1756913616983,0.68,212.18,212.15,4.713646]
[1756913617676,38.38,212.2,212.15,9.80987724]
[1756913617870,0.68,212.19,212.15,9.80987724]
[1756913619599,37.68,212.19,212.16,5.81623124]
[1756913619787,0.68,212.22,212.17,5.09623124]
[1756913620094,37.66,212.22,212.19,5.09623124]
[1756913620401,5.09623124,212.2,212.18,5.09623124]
[1756913620573,0.68,212.19,212.18,5.09623124]
[1756913621290,0.68,212.19,212.15,9.80987724]
[1756913621591,0.68,212.18,212.15,4.713646]
[1756913622994,37.66,212.19,212.15,4.713646]
[1756913623185,37.64,212.2,212.16,5.09623124]
[1756913623488,37.64,212.2,212.15,5.373646]
[1756913623489,37.68,212.2,212.17,5.09623124]
[1756913623888,38.39,212.2,212.16,13.59559401]
[1756913624092,38.39,212.2,212.16,18.69182525]
[1756913624606,38.39,212.2,212.17,4.71320167]
[1756913624893,37.68,212.2,212.17,4.71320167]
[1756913625193,5.80623124,212.22,212.17,4.71320167]
[1756913625401,0.71,212.21,212.17,4.71320167]
[1756913625592,37.64,212.21,212.18,5.75623124]
[1756913625776,31.09623124,212.26,212.2,18.69182525]
[1756913626099,0.71,212.26,212.2,13.59559401]
[1756913626394,0.71,212.28,212.24,5.09623124]
[1756913626570,0.71,212.28,212.25,4.7114252]
[1756913626770,0.06,212.29,212.25,4.7114252]
[1756913626994,0.77,212.29,212.25,4.7114252]
[1756913627210,5.09623124,212.28,212.25,4.7114252]
[1756913627703,0.71,212.27,212.25,4.7114252]
[1756913628379,5.09623124,212.28,212.25,4.7114252]
[1756913628579,0.71,212.27,212.25,4.7114252]
[1756913628899,0.71,212.26,212.23,4.71186919]
[1756913629087,5.09623124,212.24,212.21,18.30769192]
[1756913629293,5.80623124,212.25,212.21,18.30769192]
[1756913629494,0.71,212.25,212.21,18.30769192]
[1756913629696,0.71,212.24,212.21,18.30769192]
[1756913629902,5.80623124,212.24,212.21,18.30769192]
[1756913630087,5.09623124,212.23,212.21,18.30769192]
[1756913630273,5.09623124,212.23,212.21,4.71209791]
[1756913630478,5.80623124,212.23,212.21,4.71209791]
[1756913630991,5.09623124,212.23,212.21,4.71209791]
[1756913631684,0.71,212.25,212.21,4.71209791]
[1756913631886,5.09623124,212.24,212.21,4.71209791]
[1756913632205,5.09623124,212.23,212.2,4.71253534]
[1756913632382,5.80623124,212.23,212.2,4.71253534]
[1756913632584,0.71,212.23,212.2,4.71253534]
[1756913632792,5.09623124,212.23,212.2,4.71253534]
[1756913632997,37.6,212.24,212.2,4.71253534]
[1756913633198,5.80623124,212.24,212.2,4.71253534]
[1756913633400,43.40623124,212.24,212.2,4.71253534]
[1756913633576,5.80623124,212.24,212.2,4.71253534]
[1756913633785,42.69623124,212.24,212.21,13.59559401]
[1756913634187,37.6,212.24,212.22,4.71209122]
[1756913634709,5.09623124,212.25,212.22,4.71209122]
[1756913635002,37.6,212.25,212.22,4.71209122]
[1756913635203,0.71,212.27,212.22,4.71209122]
[1756913635380,42.69623124,212.26,212.22,5.37209122]
[1756913636011,43.40623124,212.26,212.22,4.71209122]
[1756913636191,37.6,212.26,212.22,5.37209122]
[1756913636384,42.69623124,212.26,212.22,5.37209122]
[1756913636809,43.40623124,212.26,212.22,4.71209122]
[1756913637108,26.06,212.29,212.23,18.69182525]
[1756913637109,0.06,212.29,212.23,18.69182525]
[1756913637319,5.09623124,212.27,212.23,13.59559401]
[1756913637519,5.80623124,212.26,212.23,13.59559401]
[1756913637800,5.80623124,212.26,212.23,15.48412355]
[1756913638003,5.09623124,212.27,212.23,15.48412355]
[1756913638212,5.09623124,212.27,212.24,4.71164719]
[1756913638384,5.09623124,212.28,212.24,5.37164719]
[1756913638582,37.58,212.27,212.24,4.71164719]
[1756913638815,43.36623124,212.27,212.24,4.71164719]
[1756913639193,42.65623124,212.27,212.24,4.71164719]
[1756913639401,0.71,212.26,212.24,4.71164719]
[1756913639700,37.56,212.27,212.24,4.71164719]
[1756913639900,0.71,212.26,212.24,4.71164719]
[1756913640285,37.56,212.27,212.24,4.71164719]
[1756913640491,0.71,212.25,212.23,1.88852954]
[1756913640685,0.71,212.24,212.19,18.69182525]
[1756913640906,0.71,212.23,212.19,32.85713441]
[1756913641118,0.71,212.23,212.19,37.56989184]
[1756913641302,0.71,212.23,212.19,32.4736606]
[1756913641617,0.71,212.23,212.19,37.56989184]
[1756913641990,0.71,212.22,212.19,32.4736606]
[1756913642189,0.71,212.21,212.18,4.71293525]
[1756913642515,0.71,212.2,212.17,14.197316]
[1756913642688,0.71,212.19,212.17,14.197316]
[1756913642894,5.80623124,212.19,212.17,14.197316]
[1756913643107,11.83668782,212.29,212.17,4.74319616]
[1756913643108,37.54,212.18,212.17,4.74319616]
[1756913644314,37.54,212.18,212.17,0.03]
[1756913644912,38.25,212.18,212.17,0.03]
[1756913645687,37.54,212.18,212.17,0.03]
[1756913646500,0.71,212.18,212.17,0.03]
[1756913646718,38.25,212.18,212.17,0.03]
[1756913647111,43.34623124,212.18,212.17,0.03]
[1756913647815,48.03921078,212.18,212.17,0.03]
[1756913648217,5.42297954,212.18,212.17,0.03]
[1756913648399,48.01921078,212.18,212.17,0.03]
[1756913649704,53.11544202,212.18,212.17,0.03]
[1756913650130,53.11544202,212.18,212.16,0.03]
[1756913650295,53.11544202,212.18,212.14,0.03]
[1756913650296,31.09623124,212.15,212.14,0.03]
[1756913650496,35.80987724,212.15,212.14,0.03]
[1756913650704,36.51987724,212.15,212.14,0.03]
[1756913651436,73.99987724,212.15,212.14,0.03]
[1756913651600,69.28623124,212.15,212.14,0.03]
[1756913652933,73.99987724,212.15,212.14,0.03]
[1756913655220,36.51987724,212.15,212.14,0.03]
[1756913655425,73.95987724,212.15,212.14,0.03]
[1756913656001,36.51987724,212.15,212.14,0.03]
[1756913656203,73.95987724,212.15,212.14,0.03]
[1756913656503,73.93987724,212.15,212.14,0.03]
[1756913657234,36.51987724,212.15,212.14,0.03]
[1756913657439,73.93987724,212.15,212.14,0.03]
[1756913658626,36.51987724,212.15,212.14,0.03]
[1756913658824,73.91987724,212.15,212.14,0.03]
[1756913660833,73.87987724,212.15,212.14,0.03]
[1756913662946,36.51987724,212.15,212.14,0.03]
[1756913663127,31.423646,212.15,212.14,0.03]
[1756913663451,0.71,212.18,212.14,0.03]
[1756913663751,0.06,212.16,212.14,0.74]
[1756913663951,37.34,212.15,212.14,0.74]
[1756913665455,5.15623124,212.16,212.14,0.74]
[1756913665653,37.34,212.15,212.14,0.74]
[1756913665856,37.34,212.15,212.14,0.03]
[1756913666066,37.34,212.15,212.14,0.74]
[1756913667566,37.34,212.15,212.14,0.03]
[1756913668362,42.43623124,212.15,212.14,0.03]
[1756913668563,37.34,212.15,212.14,0.74]
[1756913669066,37.34,212.15,212.14,0.03]
[1756913669237,42.43623124,212.15,212.14,0.03]
[1756913669757,43.14623124,212.15,212.14,0.03]
[1756913670632,47.85987724,212.15,212.14,0.03]
[1756913671435,43.14623124,212.15,212.14,0.03]
[1756913673337,47.85987724,212.15,212.14,0.03]
[1756913673747,31.09623124,212.14,212.13,0.03]
[1756913673933,35.81009944,212.14,212.13,0.03]
[1756913674129,36.52009944,212.14,212.13,0.03]
[1756913674329,10.52009944,212.14,212.13,0.03]
[1756913675341,26.0,212.13,212.11,0.03]
[1756913675542,42.37623124,212.12,212.1,0.03]
[1756913675866,42.37623124,212.11,212.1,0.03]
[1756913676051,47.09076615,212.11,212.1,0.03]
[1756913676236,47.80076615,212.11,212.1,0.03]
[1756913677361,5.42453491,212.11,212.1,0.03]
[1756913677563,45.97102299,212.11,212.1,0.03]
[1756913677766,45.95102299,212.11,212.1,0.03]
[1756913679460,45.95102299,212.11,212.01,0.71]
[1756913679663,29.26648808,212.09,211.99,0.74]
[1756913679864,66.50648808,212.09,211.99,0.74]
[1756913680054,67.21648808,212.09,211.99,0.74]
[1756913680957,63.95,212.09,211.99,0.74]
[1756913681163,3.26648808,212.0,211.99,0.74]
[1756913681362,40.50648808,212.0,211.99,0.74]
[1756913681681,40.50648808,212.0,211.99,0.03]
[1756913682773,37.24,212.0,211.99,0.03]
[1756913684378,45.93346921,212.0,211.99,0.03]
[1756913684955,8.69346921,212.0,211.99,0.03]
[1756913685171,45.97346921,212.0,211.99,0.03]
[1756913685355,8.69346921,212.0,211.99,0.03]
[1756913685554,40.54648808,212.0,211.99,0.03]
[1756913685876,26.0,212.01,211.99,0.03]
[1756913686046,40.58648808,212.0,211.99,0.03]
[1756913686953,40.72648808,212.0,211.99,0.71]
[1756913687274,40.72648808,212.0,211.99,0.03]
[1756913687480,40.72648808,212.0,211.99,0.71]
[1756913689783,37.46,212.0,211.99,0.71]
[1756913690190,40.72648808,212.0,211.99,0.71]
[1756913691079,40.70648808,212.0,211.99,0.71]
[1756913691253,3.26648808,212.0,211.99,5.42720364]
[1756913691457,37.42,212.0,211.99,5.42720364]
[1756913691889,37.52,212.03,212.0,13.59559401]
[1756913692091,37.52,212.03,212.01,0.68]
[1756913692469,37.52,212.03,212.02,13.59559401]
[1756913692672,37.52,212.03,212.02,18.99213018]
[1756913692865,34.05273827,212.1,212.02,34.04995869]
[1756913693165,37.56,212.09,212.05,13.59559401]
[1756913693385,37.56,212.09,212.06,0.68]
[1756913693588,40.82648808,212.09,212.06,0.68]
[1756913693791,40.82648808,212.09,212.07,0.68]
[1756913694490,37.56,212.09,212.07,5.39531589]
[1756913694673,40.82648808,212.09,212.07,5.39531589]
[1756913694880,0.06,212.16,212.08,3.94648808]
[1756913695211,0.06,212.16,212.14,13.59559401]
[1756913695373,0.06,212.16,212.1,13.87991715]
[1756913695692,0.06,212.16,212.12,13.59559401]
[1756913696381,0.06,212.16,212.1,13.87991715]
[1756913696587,3.26648808,212.15,212.12,0.68]
[1756913696781,0.06,212.16,212.14,13.59559401]
[1756913696978,3.32648808,212.16,212.14,13.59559401]
[1756913697296,0.06,212.16,212.14,14.27559401]
[1756913697593,0.06,212.16,212.14,17.54208209]
[1756913698480,0.06,212.16,212.14,22.2558998]
[1756913699615,0.06,212.16,212.14,18.98941172]
[1756913699896,0.06,212.16,212.14,22.2558998]
[1756913700305,0.06,212.16,212.14,13.59559401]
[1756913700985,0.06,212.16,212.14,18.30939028]
[1756913701184,0.06,212.16,212.14,22.25587836]
[1756913701384,0.06,212.16,212.15,16.86208209]
[1756913701593,0.06,212.16,212.15,14.27559401]
[1756913701788,0.06,212.16,212.15,17.54208209]
[1756913702406,0.06,212.16,212.15,22.25572809]
[1756913702702,0.06,212.16,212.15,22.54005123]
[1756913702888,1e-08,212.16,212.15,19.27356315]
[1756913703089,1e-08,212.16,212.15,22.54005123]
[1756913703503,1e-08,212.16,212.15,37.49471144]
[1756913703705,0.06,212.19,212.18,39.59559401]
[1756913703706,1e-08,212.19,212.18,39.59559401]
[1756913703911,1e-08,212.21,212.2,0.28432314]
[1756913704090,1e-08,212.21,212.2,55.17190947]
[1756913704286,1e-08,212.21,212.2,55.85190947]
[1756913704506,1e-08,212.21,212.2,57.29795673]
[1756913704711,1e-08,212.21,212.2,60.56444481]
[1756913705303,1e-08,212.21,212.2,62.4527069]
[1756913706510,1e-08,212.21,212.2,62.4327069]
[1756913706688,1e-08,212.21,212.2,24.9927069]
[1756913707115,1e-08,212.21,212.2,62.4327069]
[1756913707892,0.06,212.28,212.24,13.59559401]
[1756913708093,0.06,212.28,212.27,3.26648808]
[1756913708414,0.06,212.28,212.27,43.14640523]
[1756913708592,0.06,212.28,212.27,47.85738652]
[1756913709225,0.06,212.28,212.27,48.53738652]
[1756913709601,0.06,212.28,212.27,85.93738652]
[1756913710209,0.06,212.28,212.27,99.00333884]
[1756913710412,1e-08,212.28,212.27,99.00333884]
[1756913710725,1e-08,212.28,212.27,48.53738652]
[1756913711428,1e-08,212.28,212.27,47.85738652]
[1756913711632,1e-08,212.28,212.27,47.57306338]
[1756913711826,1e-08,212.28,212.27,21.57306338]
[1756913712025,1e-08,212.28,212.27,16.86208209]
[1756913712211,0.67000001,212.28,212.26,3.26648808]
[1756913712413,1e-08,212.28,212.27,3.26648808]
[1756913712618,1e-08,212.28,212.27,7.97746937]
[1756913713037,1e-08,212.28,212.27,48.29306338]
[1756913713548,1e-08,212.28,212.27,47.57306338]
[1756913714352,1e-08,212.28,212.27,44.3065753]
[1756913714538,1e-08,212.28,212.27,47.57306338]
[1756913715058,1e-08,212.28,212.27,47.85738652]
[1756913715232,1e-08,212.28,212.27,48.57738652]
[1756913715431,1e-08,212.28,212.27,44.59089844]
[1756913715631,1e-08,212.28,212.27,87.48511393]
[1756913716754,1e-08,212.28,212.27,49.46079079]
[1756913716946,0.67000001,212.28,212.27,1.88772741]
[1756913717945,0.67000001,212.28,212.24,16.86208209]
[1756913718156,0.67,212.27,212.25,3.46648808]
[1756913718365,0.67,212.26,212.24,3.26648808]
[1756913718654,0.67,212.25,212.23,1.88861871]
[1756913718965,1e-08,212.28,212.24,3.26648808]
[1756913719153,1e-08,212.28,212.27,3.26648808]
[1756913719549,1e-08,212.28,212.27,29.26648808]
[1756913719938,1e-08,212.28,212.27,43.86640523]
[1756913720234,1e-08,212.28,212.27,43.14640523]
[1756913720835,1e-08,212.28,212.27,80.58208209]
[1756913721036,1e-08,212.28,212.27,47.57306338]
[1756913721558,1e-08,212.28,212.27,89.92279429]
[1756913721947,1e-08,212.28,212.27,82.0065753]
[1756913722150,1e-08,212.28,212.27,89.92279429]
[1756913722669,1e-08,212.28,212.27,90.92711743]
[1756913723041,1e-08,212.28,212.27,91.49243518]
[1756913723944,1e-08,212.28,212.27,90.92711743]
[1756913726969,1e-08,212.28,212.27,45.31089844]
[1756913727264,1e-08,212.28,212.27,90.98711743]
[1756913727465,0.2,212.3,212.27,91.55243518]
[1756913727643,0.2,212.3,212.29,21.79613614]
[1756913727970,1e-08,212.3,212.29,60.16140063]
[1756913728145,1e-08,212.3,212.29,60.88140063]
[1756913728345,1e-08,212.3,212.29,62.76886081]
[1756913729149,1e-08,212.3,212.29,67.47939828]
[1756913729365,1e-08,212.3,212.29,29.67939828]
[1756913729570,1e-08,212.3,212.29,59.54317929]
[1756913729872,1e-08,212.3,212.29,16.33264182]
[1756913730040,1e-08,212.3,212.29,87.46359632]
[1756913730348,1e-08,212.3,212.29,88.18359632]
[1756913730755,1e-08,212.3,212.29,92.89413379]
[1756913731465,1e-08,212.3,212.29,93.45939828]
[1756913732571,1e-08,212.3,212.29,92.89413379]
[1756913733648,1e-08,212.31,212.3,13.59559401]
[1756913733852,1e-08,212.31,212.3,22.79705087]
[1756913734252,1e-08,212.31,212.3,24.68451105]
[1756913734962,1e-08,212.31,212.3,61.66451105]
[1756913735347,1e-08,212.31,212.3,62.38451105]
[1756913735548,1e-08,212.31,212.3,67.37914978]
[1756913736656,0.06,212.33,212.32,39.59559401]
[1756913736657,1e-08,212.33,212.32,39.59559401]
[1756913736856,1e-08,212.33,212.32,85.171813]
[1756913737350,1e-08,212.33,212.32,93.08803199]
[1756913738452,0.67000001,212.33,212.32,93.35235513]
[1756913738660,0.67000001,212.33,212.32,26.22168489]
[1756913738870,0.67000001,212.33,212.32,63.86168489]
[1756913739457,0.67000001,212.33,212.32,26.22168489]
[1756913739657,0.67000001,212.33,212.32,75.54003872]
[1756913740478,1e-08,212.33,212.32,75.54003872]
[1756913741173,0.67000001,212.33,212.32,70.83016683]
[1756913741372,0.67000001,212.33,212.32,75.54003872]
[1756913741561,1e-08,212.33,212.32,68.92893423]
[1756913741749,1e-08,212.33,212.32,69.89325737]
[1756913742864,1e-08,212.33,212.32,69.21325737]
[1756913743178,0.68000001,212.33,212.32,26.22168489]
[1756913743376,0.68000001,212.33,212.32,31.30893423]
[1756913743773,0.68000001,212.33,212.32,68.88893423]
[1756913744448,0.68000001,212.33,212.32,21.511813]
[1756913744651,5.76724935,212.33,212.32,7.91621899]
[1756913745051,10.47689942,212.33,212.29,0.03]
[1756913745250,5.08724934,212.31,212.29,0.03]
[1756913745450,5.38966643,212.33,212.29,0.03]
[1756913745689,5.76724934,212.3,212.29,0.03]
[1756913746660,0.68,212.3,212.29,0.03]
[1756913746982,5.76724934,212.3,212.29,0.03]
[1756913747480,12.38645136,212.3,212.29,0.03]
[1756913748475,0.68,212.3,212.29,0.03]
[1756913748669,12.38645136,212.3,212.29,0.03]
[1756913750378,17.09676695,212.3,212.29,0.03]
[1756913750776,5.39031559,212.3,212.29,0.03]
[1756913750966,17.09676695,212.3,212.29,0.03]
[1756913751469,0.68,212.3,212.29,0.03]
[1756913751655,12.38645136,212.3,212.29,0.03]
[1756913751859,0.68,212.3,212.29,0.03]
[1756913752496,0.68,212.32,212.29,0.03]
[1756913752866,0.68,212.31,212.29,4.74053747]
[1756913753061,1e-08,212.33,212.3,25.30204537]
[1756913753374,1e-08,212.33,212.31,11.70645136]
[1756913753375,0.68000001,212.33,212.31,11.70645136]
[1756913753557,0.68000001,212.33,212.3,25.30204537]
[1756913753963,0.68,212.32,212.3,25.30204537]
[1756913754294,1e-08,212.33,212.3,13.59559401]
[1756913754478,0.68000001,212.33,212.3,13.59559401]
[1756913754667,0.68,212.32,212.3,13.59559401]
[1756913754973,0.68,212.31,212.29,4.74053747]
[1756913755294,11.70645137,212.33,212.3,11.70645136]
[1756913755295,1e-08,212.33,212.3,11.70645136]
[1756913755472,1e-08,212.33,212.31,25.30204537]
[1756913755671,1e-08,212.33,212.31,13.59559401]
[1756913756065,1e-08,212.33,212.31,11.70645136]
[1756913756366,1e-08,212.33,212.32,25.30204537]
[1756913757470,1e-08,212.33,212.32,30.01191726]
[1756913758168,1e-08,212.33,212.32,18.3054659]
[1756913758367,1e-08,212.33,212.32,30.01191726]
[1756913759001,1e-08,212.33,212.32,25.30204537]
[1756913759166,0.68000001,212.33,212.32,4.70987189]
[1756913759490,0.68000001,212.33,212.31,13.59559401]
[1756913760071,1e-08,212.33,212.31,13.59559401]
[1756913760274,1e-08,212.33,212.32,13.59559401]
[1756913760584,1e-08,212.33,212.32,15.48332142]
[1756913760765,0.68000001,212.33,212.32,15.48332142]
[1756913761165,12.38645137,212.33,212.3,13.59559401]
[1756913761392,0.68,212.32,212.3,13.59559401]
[1756913761581,0.68,212.31,212.3,15.48358873]
[1756913763405,0.68,212.31,212.3,1.88799472]
[1756913763579,1e-08,212.33,212.29,0.03]
[1756913763769,0.68000001,212.33,212.3,13.59559401]
[1756913763971,0.68,212.32,212.3,13.59559401]
[1756913764998,1e-08,212.33,212.31,11.70645136]
[1756913765205,1e-08,212.33,212.32,25.30204537]
[1756913765386,1e-08,212.33,212.32,25.98204537]
[1756913765590,1e-08,212.33,212.32,94.4162404]
[1756913766192,1e-08,212.33,212.32,56.9762404]
[1756913766401,1e-08,212.33,212.32,82.70978904]
[1756913766696,1e-08,212.33,212.32,94.4162404]
[1756913767014,1e-08,212.35,212.33,11.9907745]
[1756913767177,1e-08,212.35,212.34,25.58636851]
[1756913767378,1e-08,212.35,212.34,64.2714999]
[1756913767696,1e-08,212.35,212.34,30.97579678]
[1756913767897,1e-08,212.35,212.34,19.26934542]
[1756913768112,1e-08,212.35,212.34,73.12285931]
[1756913768598,1e-08,212.35,212.34,35.68285931]
[1756913768994,1e-08,212.35,212.34,73.10285931]
[1756913770377,1e-08,212.35,212.34,94.37579678]
[1756913770781,1e-08,212.35,212.34,68.37579678]
[1756913771590,1e-08,212.35,212.34,70.26290079]
[1756913772377,1e-08,212.35,212.34,32.86290079]
[1756913772578,1e-08,212.35,212.34,33.42803218]
[1756913772807,1e-08,212.35,212.34,20.47644943]
[1756913773092,1e-08,212.35,212.34,69.54290079]
[1756913773395,1e-08,212.35,212.34,58.18290079]
[1756913773700,1e-08,212.35,212.34,95.54290079]
[1756913773893,1e-08,212.35,212.34,58.18290079]
[1756913774093,1e-08,212.35,212.34,95.54290079]
[1756913774296,1e-08,212.35,212.34,58.18290079]
[1756913774501,1e-08,212.35,212.34,95.54290079]
[1756913775204,1e-08,212.35,212.34,96.25290079]
[1756913775399,1e-08,212.35,212.34,70.25290079]
[1756913775596,1e-08,212.35,212.34,70.23290079]
[1756913776107,1e-08,212.36,212.35,0.28432314]
[1756913776403,1e-08,212.36,212.35,26.86147328]
[1756913776602,1e-08,212.36,212.35,111.27067977]
[1756913776805,0.06,212.4,212.39,26.0]
[1756913777103,11.70645136,212.47,212.41,0.28432314]
[1756913777104,0.69,212.47,212.41,0.28432314]
[1756913777419,0.69,212.47,212.45,13.59559401]
[1756913777581,0.69,212.46,212.45,13.59559401]
[1756913777906,0.69,212.46,212.44,13.59559401]
[1756913778214,0.69,212.45,212.44,13.59559401]
[1756913780087,0.69,212.45,212.4,25.30204537]
[1756913780295,0.69,212.44,212.39,42.41475976]
[1756913780504,0.69,212.43,212.4,13.59559401]
[1756913780707,0.69,212.42,212.4,18.30369124]
[1756913781001,0.69,212.41,212.4,13.59559401]
[1756913781381,0.69,212.41,212.4,18.30369193]
[1756913781780,11.70645136,212.45,212.4,30.01014329]
[1756913782010,0.69,212.44,212.4,30.01014329]
[1756913782302,0.69,212.44,212.42,11.70645136]
[1756913782701,0.69,212.44,212.43,4.70743303]
[1756913783206,0.69,212.44,212.43,18.30302704]
[1756913783582,0.69,212.44,212.43,13.59559401]
[1756913783908,0.69,212.44,212.38,11.9907745]
[1756913783909,12.39645136,212.44,212.38,11.9907745]
[1756913784106,12.39645136,212.44,212.4,25.30204537]
[1756913784107,0.69,212.44,212.4,25.30204537]
[1756913784319,0.69,212.44,212.41,11.70645136]
[1756913784487,0.69,212.43,212.42,11.70645136]
[1756913784831,0.69,212.45,212.42,11.70645136]
[1756913785009,0.82,212.49,212.45,13.59559401]
[1756913785186,0.82,212.49,212.47,11.70645136]
[1756913786705,0.82,212.49,212.45,14.1479403]
[1756913786706,0.13,212.49,212.48,30.00837067]
[1756913787089,0.13,212.49,212.48,18.30191931]
[1756913787296,0.13,212.49,212.48,30.00837067]
[1756913788096,0.13,212.49,212.48,18.30191931]
[1756913788408,0.13,212.49,212.48,30.00837067]
[1756913789085,0.13,212.49,212.48,30.29269381]
[1756913789291,0.13,212.49,212.48,31.00269381]
[1756913790515,0.13,212.49,212.48,34.73296904]
[1756913790711,0.13,212.49,212.48,68.26269381]
[1756913790920,1e-08,212.49,212.48,68.26269381]
[1756913791414,1e-08,212.49,212.48,145.74996631]
[1756913791620,1e-08,212.49,212.48,145.18520728]
[1756913791797,1e-08,212.49,212.48,107.92520728]
[1756913792188,1e-08,212.49,212.48,102.84911772]
[1756913792506,1e-08,212.49,212.48,140.10911772]
[1756913793293,1e-08,212.49,212.48,136.25624245]
[1756913793498,1e-08,212.49,212.48,139.99300613]
[1756913793696,1e-08,212.49,212.48,98.99624245]
[1756913793908,1e-08,212.49,212.48,136.25624245]
[1756913794500,1e-08,212.49,212.48,98.28624245]
[1756913795217,1e-08,212.49,212.48,135.54624245]
[1756913796007,1e-08,212.49,212.48,136.25624245]
[1756913796196,0.69000001,212.49,212.48,98.00191931]
[1756913796396,0.69000001,212.49,212.48,135.24191931]
[1756913796606,0.69000001,212.49,212.48,130.53559401]
[1756913796907,0.69000001,212.49,212.48,13.59559401]
[1756913797411,0.69000001,212.49,212.48,18.30191931]
[1756913801603,1e-08,212.49,212.48,21.83762579]
[1756913802093,1e-08,212.49,212.48,47.83762579]
[1756913803715,1e-08,212.49,212.48,44.58624245]
[1756913803904,0.69000001,212.49,212.48,81.78624245]
[1756913804110,1e-08,212.49,212.48,85.01762579]
[1756913804425,1e-08,212.49,212.48,47.55330265]
[1756913804626,1e-08,212.49,212.48,84.79330265]
[1756913805403,0.69000001,212.49,212.48,81.54191931]
[1756913805623,0.69000001,212.49,212.48,76.83559401]
[1756913806029,0.69000001,212.49,212.48,81.54191931]
[1756913807825,0.69000001,212.49,212.48,18.30191931]
[1756913808033,0.69000001,212.49,212.48,55.50191931]
[1756913809012,0.69000001,212.49,212.48,13.59559401]
[1756913809336,3.94138335,212.49,212.46,13.59559401]
[1756913809638,3.94138334,212.48,212.45,13.59559401]
[1756913809856,0.69,212.47,212.45,13.59559401]
[1756913810021,0.69,212.46,212.45,13.59559401]
[1756913810212,3.25138335,212.49,212.45,21.55396722]
[1756913810512,0.69,212.48,212.45,18.30258388]
[1756913810714,0.69,212.47,212.45,18.30258388]
[1756913810913,0.69,212.46,212.45,18.30258388]
[1756913811111,0.69,212.46,212.45,13.62559401]
[1756913811321,0.69,212.46,212.45,0.03]
[1756913817416,3.94138335,212.49,212.45,0.03]
[1756913817622,0.69,212.48,212.45,0.03]
[1756913817842,3.25138335,212.49,212.48,13.59559401]
[1756913817843,1e-08,212.49,212.48,13.59559401]
[1756913818023,1e-08,212.49,212.46,13.59559401]
[1756913818336,1e-08,212.49,212.48,9.84401173]
[1756913819161,1e-08,212.49,212.48,6.59262839]
[1756913819949,0.69000001,212.49,212.48,4.7063253]
[1756913820330,0.69000001,212.49,212.47,20.18841484]
[1756913820653,0.69000001,212.49,212.45,0.03]
[1756913820654,3.94138334,212.48,212.45,0.03]
[1756913820855,3.25138334,212.46,212.45,0.03]
[1756913821238,3.94138334,212.46,212.45,0.03]
[1756913821442,0.69,212.46,212.45,0.03]
[1756913822168,3.94138334,212.46,212.45,0.03]
[1756913824153,0.69,212.46,212.45,0.03]
[1756913825031,3.25138334,212.48,212.45,0.03]
[1756913825233,0.69,212.47,212.45,0.03]
[1756913825968,0.69,212.46,212.45,0.03]
[1756913826557,0.69000001,212.49,212.46,13.59559401]
[1756913826753,1e-08,212.49,212.46,16.84697735]
[1756913826966,1e-08,212.49,212.46,13.59559401]
[1756913827255,0.69000001,212.49,212.46,13.59559401]
[1756913827457,1e-08,212.49,212.46,16.84697735]
[1756913827834,1e-08,212.49,212.46,13.59559401]
[1756913828448,1e-08,212.49,212.46,18.30218554]
[1756913828649,0.69,212.48,212.46,18.30218554]
[1756913828837,0.69,212.48,212.45,0.03]
[1756913829036,1e-08,212.49,212.46,13.59559401]
[1756913829654,0.69000001,212.49,212.46,13.59559401]
[1756913829850,3.94138334,212.48,212.46,13.59559401]
[1756913830050,0.69,212.48,212.46,13.59559401]
[1756913830560,1e-08,212.49,212.46,13.59559401]
[1756913830771,0.69000001,212.49,212.46,4.70674413]
[1756913831273,1e-08,212.49,212.46,4.70674413]